fUST/lending_fUST_20240121
["ID","MTS","AMOUNT","RATE_DAILY","PERIOD"]
[312346459,1705807838820,-500.0,0.00030136,2]
[312346460,1705807838829,-692.41,0.00030136,2]
[312346461,1705807838838,-500.0,0.00030136,2]
[312346462,1705807838849,-180.65966044,0.00030136,2]
[312346463,1705807838859,-500.0,0.00030136,2]
[312346464,1705807838869,-500.0,0.00030136,2]
[312346465,1705807838878,-500.0,0.00030136,2]
[312346466,1705807838887,-769.37,0.00030136,2]
[312346467,1705807838897,-500.0,0.00030136,2]
[312346468,1705807838906,-500.0,0.00030136,2]
[312346469,1705807838915,-1346.86,0.00030136,2]
[312346470,1705807838925,-500.0,0.00030136,2]
[312346471,1705807838934,-500.0,0.00030136,2]
[312346472,1705807838944,-500.0,0.00030136,2]
[312346473,1705807838953,-500.0,0.00030136,2]
[312346474,1705807838963,-500.0,0.00030136,2]
[312346475,1705807838972,-505.15812508,0.00030136,2]
[312346476,1705807838981,-500.0,0.00030136,2]
[312346477,1705807838990,-503.06309626,0.00030136,2]
[312346478,1705807839000,-500.0,0.00030136,2]
[312346479,1705807839009,-500.0,0.00030136,2]
[312346480,1705807839018,-500.0,0.00030136,2]
[312346481,1705807839027,-500.0,0.00030136,2]
[312346482,1705807839170,-500.0,0.00030136,2]
[312346483,1705807839179,-500.0,0.00030136,2]
[312346484,1705807839188,-205.62504191,0.00030136,2]
[312346485,1705807839200,-500.0,0.00030136,2]
[312346486,1705807839209,-500.0,0.00030136,2]
[312346487,1705807839219,-500.4458244,0.00030136,2]
[312346488,1705807839229,-500.0,0.00030136,2]
[312346489,1705807839238,-500.0,0.00030136,2]
[312346490,1705807839247,-500.0,0.00030136,2]
[312346491,1705807839256,-500.85399954,0.00030136,2]
[312346492,1705807839265,-150.0,0.00030136,2]
[312346493,1705807839275,-10018.48398771,0.00030136,10]
[312346494,1705807839284,-500.32661163,0.00030136,2]
[312346495,1705807839294,-500.0,0.00030136,2]
[312346496,1705807839303,-503.24194096,0.00030136,2]
[312346497,1705807839312,-500.0,0.00030136,2]
[312346498,1705807839322,-515.34139418,0.00030136,2]
[312346499,1705807839331,-647.66,0.00030136,2]
[312346500,1705807839340,-998.80844291,0.00030136,2]
[312346501,1705807839350,-504.36863832,0.00030136,2]
[312346502,1705807839359,-500.0,0.00030136,2]
[312346503,1705807839369,-575.98690108,0.00030136,2]
[312346504,1705807839378,-500.0,0.00030136,2]
[312346505,1705807839387,-500.0,0.00030136,2]
[312346506,1705807839396,-504.03597928,0.00030136,2]
[312346507,1705807839405,-503.59642342,0.00030136,2]
[312346508,1705807839415,-500.39554514,0.00030136,2]
[312346509,1705807839424,-1091.96,0.00030136,2]
[312346510,1705807839433,-500.85348377,0.00030136,2]
[312346511,1705807839442,-500.0,0.00030136,2]
[312346512,1705807839451,-711.91,0.00030136,2]
[312346513,1705807839461,-711.91,0.00030136,2]
[312346514,1705807839471,-500.0,0.00030136,2]
[312346515,1705807839481,-711.91,0.00030136,2]
[312346516,1705807839490,-711.91,0.00030136,2]
[312346517,1705807839499,-711.91,0.00030136,2]
[312346518,1705807839508,-500.0,0.00030136,2]
[312346519,1705807839517,-711.91,0.00030136,2]
[312346520,1705807839527,-711.91,0.00030136,2]
[312346521,1705807839536,-711.91,0.00030136,2]
[312346522,1705807839545,-711.91,0.00030136,2]
[312346523,1705807839554,-711.91,0.00030136,2]
[312346524,1705807839563,-711.91,0.00030136,2]
[312346525,1705807839573,-711.91,0.00030136,2]
[312346526,1705807839582,-500.0,0.00030136,2]
[312346527,1705807839591,-500.0,0.00030136,2]
[312346528,1705807839601,-501.49584518,0.00030136,2]
[312346529,1705807839611,-681.63,0.00030136,2]
[312346530,1705807839620,-546.97,0.00030136,2]
[312346531,1705807839629,-379.75033587,0.00030136,2]
[312346532,1705807839638,-500.0,0.00030136,2]
[312346533,1705807839647,-500.0,0.00030136,2]
[312346534,1705807839656,-500.0,0.00030136,2]
[312346535,1705807839665,-2175.02,0.00030136,2]
[312346536,1705807839674,-666.01,0.00030136,2]
[312346537,1705807839683,-500.42835523,0.00030136,2]
[312346538,1705807839693,-500.0,0.00030136,2]
[312346539,1705807839702,-500.0,0.00030136,2]
[312346540,1705807839711,-1000.0,0.00030136,2]
[312346541,1705807839720,-500.0,0.00030136,2]
[312346542,1705807839729,-504.24365208,0.00030136,2]
[312346543,1705807839738,-2967.23,0.00030136,2]
[312346544,1705807839748,-500.0,0.00030136,2]
[312346545,1705807839757,-500.0,0.00030136,2]
[312346546,1705807839767,-500.0,0.00030136,2]
[312346547,1705807839776,-502.17254469,0.00030136,2]
[312346548,1705807839786,-500.0,0.00030136,2]
[312346549,1705807839795,-500.0,0.00030136,2]
[312346550,1705807839804,-500.0,0.00030136,2]
[312346551,1705807839813,-500.0,0.00030136,2]
[312346552,1705807839822,-500.0,0.00030136,2]
[312346553,1705807839831,-630.89408536,0.00030136,2]
[312346554,1705807839840,-500.49790983,0.00030136,2]
[312346555,1705807839852,-500.0,0.00030136,2]
[312346556,1705807839861,-500.0,0.00030136,2]
[312346557,1705807839870,-500.0,0.00030136,7]
[312346558,1705807839879,-500.0,0.00030136,2]
[312346559,1705807839889,-500.0,0.00030136,2]
[312346560,1705807839898,-500.0,0.00030136,2]
[312346561,1705807839907,-689.35,0.00030136,2]
[312346562,1705807839916,-631.6,0.00030136,2]
[312346563,1705807839925,-501.78466659,0.00030136,2]
[312346564,1705807839935,-1003.97447176,0.00030136,5]
[312346565,1705807839944,-500.0,0.00030136,2]
[312346566,1705807839953,-500.0,0.00030136,2]
[312346567,1705807839962,-432.53006519,0.00030136,2]
[312346568,1705807839971,-503.90362874,0.00030136,2]
[312346569,1705807839980,-500.0,0.00030136,2]
[312346570,1705807839989,-504.43578108,0.00030136,2]
[312346571,1705807839998,-500.0,0.00030136,2]
[312346572,1705807840007,-300.67494007,0.00030136,2]
[312346573,1705807840017,-500.0,0.00030136,2]
[312346574,1705807840026,-500.0,0.00030136,2]
[312346575,1705807840035,-857.08,0.00030136,2]
[312346576,1705807840044,-500.0,0.00030136,2]
[312346577,1705807840053,-505.33617015,0.00030136,2]
[312346578,1705807840063,-626.70192527,0.00030136,2]
[312346579,1705807840072,-500.0,0.00030136,2]
[312346580,1705807840081,-500.0,0.00030136,2]
[312346581,1705807840090,-500.0,0.00030136,2]
[312346582,1705807840099,-502.74317768,0.00030136,2]
[312346583,1705807840108,-500.0,0.00030136,2]
[312346584,1705807840117,-529.68642611,0.00030136,2]
[312346585,1705807840165,-500.0,0.00030136,2]
[312346588,1705807840174,-1590.25,0.00030136,2]
[312346590,1705807840184,-430.23740903,0.00030136,2]
[312346591,1705807840193,-500.0,0.00030136,2]
[312346592,1705807840203,-500.0,0.00030136,2]
[312346593,1705807840212,-500.0,0.00030136,2]
[312346594,1705807840221,-500.0,0.00030136,2]
[312346595,1705807840231,-500.0,0.00030136,2]
[312346596,1705807840241,-500.0,0.00030136,2]
[312346597,1705807840250,-588.63674793,0.00030136,2]
[312346598,1705807840259,-503.55499181,0.00030136,2]
[312346599,1705807840268,-521.81338409,0.00030136,2]
[312346600,1705807840277,-1024.67,0.00030136,2]
[312346601,1705807840287,-676.03,0.00030136,2]
[312346602,1705807840297,-220.0,0.00030136,2]
[312346603,1705807840306,-500.0,0.00030136,2]
[312346604,1705807840315,-500.0,0.00030136,2]
[312346605,1705807840324,-500.0,0.00030136,2]
[312346607,1705807840333,-500.0,0.00030136,2]
[312346608,1705807840343,-500.29208664,0.00030136,2]
[312346609,1705807840352,-500.59354776,0.00030136,2]
[312346610,1705807840361,-500.0,0.00030136,2]
[312346611,1705807840370,-633.69735015,0.00030136,2]
[312346612,1705807840379,-550.59287802,0.00030136,2]
[312346613,1705807840389,-335.16007594,0.00030136,2]
[312346614,1705807840398,-500.82235622,0.00030136,2]
[312346615,1705807840407,-500.0,0.00030136,2]
[312346616,1705807840416,-500.0,0.00030136,2]
[312346617,1705807840425,-535.61395288,0.00030136,2]
[312346618,1705807840434,-501.90194518,0.00030136,2]
[312346619,1705807840443,-500.0,0.00030136,2]
[312346620,1705807840452,-500.0,0.00030136,2]
[312346621,1705807840462,-500.0,0.00030136,2]
[312346622,1705807840471,-505.72168151,0.00030136,2]
[312346623,1705807840479,-1358.74,0.00030136,2]
[312346624,1705807840488,-226.41582481,0.00030136,2]
[312346625,1705807840497,-500.0,0.00030136,2]
[312346626,1705807840506,-500.0,0.00030136,2]
[312346627,1705807840516,-503.03597307,0.00030136,2]
[312346628,1705807840526,-502.39311687,0.00030136,2]
[312346629,1705807840536,-503.30193575,0.00030136,2]
[312346630,1705807840545,-729.77,0.00030136,2]
[312346631,1705807840554,-511.79386272,0.00030136,2]
[312346632,1705807840563,-1460.37,0.00030136,2]
[312346633,1705807840572,-505.49870955,0.00030136,2]
[312346634,1705807840581,-500.0,0.00030136,2]
[312346635,1705807840590,-500.0,0.00030136,2]
[312346636,1705807840599,-500.0,0.00030136,2]
[312346637,1705807840609,-500.0,0.00030136,2]
[312346638,1705807840618,-501.82444783,0.00030136,2]
[312346639,1705807840627,-549.85013695,0.00030136,2]
[312346640,1705807840636,-500.0,0.00030136,2]
[312346641,1705807840646,-1254.37,0.00030136,2]
[312346642,1705807840655,-844.93,0.00030136,2]
[312346643,1705807840664,-506.35551965,0.00030136,2]
[312346644,1705807840673,-501.49602513,0.00030136,2]
[312346645,1705807840682,-500.0,0.00030136,2]
[312346646,1705807840691,-500.0,0.00030136,2]
[312346647,1705807840700,-500.0,0.00030136,2]
[312346648,1705807840710,-198.27753364,0.00030136,2]
[312346649,1705807840719,-513.90665913,0.00030136,2]
[312346650,1705807840728,-500.0,0.00030136,2]
[312346651,1705807840737,-500.0,0.00030136,2]
[312346652,1705807840746,-394.82878755,0.00030136,2]
[312346653,1705807840755,-500.0,0.00030136,2]
[312346654,1705807840764,-907.51,0.00030136,2]
[312346655,1705807840773,-500.0,0.00030136,2]
[312346656,1705807840782,-1030.3,0.00030136,2]
[312346657,1705807840792,-503.75336205,0.00030136,2]
[312346658,1705807840801,-500.0,0.00030136,2]
[312346659,1705807840810,-334.31172185,0.00030136,2]
[312346660,1705807840819,-214.27926151,0.00030136,2]
[312346661,1705807840828,-500.0,0.00030136,2]
[312346662,1705807840838,-501.12985947,0.00030136,2]
[312346663,1705807840847,-1284.85,0.00030136,2]
[312346664,1705807840858,-25941.87,0.00030136,2]
[312346665,1705807840867,-500.0,0.00030136,2]
[312346666,1705807840876,-521.65662967,0.00030136,2]
[312346667,1705807840886,-500.0,0.00030136,2]
[312346668,1705807840896,-500.0,0.00030136,2]
[312346669,1705807840905,-500.0,0.00030136,2]
[312346670,1705807840914,-297.22570451,0.00030136,2]
[312346671,1705807840923,-9076.49,0.00030136,2]
[312346672,1705807840932,-500.0,0.00030136,2]
[312346673,1705807840941,-544.35,0.00030136,2]
[312346674,1705807840950,-538.02736512,0.00030136,2]
[312346675,1705807840960,-500.0,0.00030136,2]
[312346676,1705807840969,-500.0,0.00030136,2]
[312346677,1705807840979,-500.0,0.00030136,2]
[312346678,1705807840988,-459.32992208,0.00030136,2]
[312346679,1705807840997,-502.52181998,0.00030136,2]
[312346680,1705807841007,-500.0,0.00030136,2]
[312346681,1705807841015,-5979.26,0.00030136,2]
[312346682,1705807841025,-500.67314199,0.00030136,2]
[312346683,1705807841034,-3157.47,0.00030136,2]
[312346684,1705807841044,-500.0,0.00030136,2]
[312346685,1705807841054,-517.25030731,0.00030136,2]
[312346686,1705807841063,-500.0,0.00030136,2]
[312346687,1705807841072,-500.0,0.00030136,2]
[312346688,1705807841081,-507.46673597,0.00030136,2]
[312346689,1705807841090,-500.0,0.00030136,2]
[312346690,1705807841099,-500.0,0.00030136,2]
[312346691,1705807841108,-500.0,0.00030136,2]
[312346692,1705807841117,-500.49227086,0.00030136,2]
[312346693,1705807841126,-500.74589736,0.00030136,2]
[312346694,1705807841135,-274.86515668,0.00030136,2]
[312346695,1705807841144,-199.98845757,0.00030136,2]
[312346696,1705807841153,-500.0,0.00030136,2]
[312346697,1705807841163,-500.0,0.00030136,2]
[312346698,1705807841172,-500.0,0.00030136,2]
[312346699,1705807841181,-500.0,0.00030136,2]
[312346700,1705807841190,-1249.0,0.00030136,2]
[312346701,1705807841200,-500.0,0.00030136,2]
[312346702,1705807841209,-2307.81,0.00030136,2]
[312346703,1705807841219,-500.0,0.00030136,2]
[312346704,1705807841228,-1020.02,0.00030136,2]
[312346705,1705807841237,-500.0,0.00030136,2]
[312346706,1705807841247,-500.0,0.00030136,2]
[312346707,1705807841256,-500.0,0.00030136,2]
[312346708,1705807841265,-500.0,0.00030136,2]
[312346709,1705807841274,-500.0,0.00030136,2]
[312346710,1705807841284,-500.0,0.00030136,2]
[312346711,1705807841293,-500.0,0.00030136,2]
[312346712,1705807841302,-504.10624072,0.00030136,2]
[312346713,1705807841312,-500.0,0.00030136,2]
[312346714,1705807841322,-500.0,0.00030136,2]
[312346715,1705807841331,-237.04279308,0.00030136,2]
[312346716,1705807841340,-500.0,0.00030136,2]
[312346717,1705807841350,-500.0,0.00030136,2]
[312346718,1705807841359,-4137.41,0.00030136,2]
[312346719,1705807841369,-603.96698279,0.00030136,2]
[312346720,1705807841378,-500.0,0.00030136,2]
[312346721,1705807841388,-500.0,0.00030136,2]
[312346722,1705807841397,-1167.79,0.00030136,2]
[312346723,1705807841406,-409.5588968,0.00030136,2]
[312346724,1705807841415,-500.0,0.00030136,2]
[312346725,1705807841424,-537.26631721,0.00030136,2]
[312346726,1705807841433,-1171.31,0.00030136,2]
[312346727,1705807841442,-1049.28,0.00030136,2]
[312346728,1705807841451,-500.0,0.00030136,2]
[312346729,1705807841461,-2201.95,0.00030136,2]
[312346730,1705807841470,-500.0,0.00030136,2]
[312346731,1705807841479,-500.0,0.00030136,2]
[312346732,1705807841489,-500.0,0.00030136,2]
[312346733,1705807841498,-500.0,0.00030136,2]
[312346734,1705807841507,-387.91365375,0.00030136,2]
[312346735,1705807841616,-512.02,0.00030136,2]
[312346736,1705807841625,-500.0,0.00030136,2]
[312346737,1705807841634,-500.0,0.00030136,2]
[312346738,1705807841644,-500.0,0.00030136,2]
[312346739,1705807841653,-5746.37,0.00030136,2]
[312346740,1705807841662,-500.0,0.00030136,2]
[312346741,1705807841671,-500.0,0.00030136,2]
[312346742,1705807841680,-500.0,0.00030136,2]
[312346743,1705807841690,-500.0,0.00030136,2]
[312346744,1705807841699,-1000.0,0.00030136,2]
[312346745,1705807841709,-15115.3,0.00030136,2]
[312346746,1705807841719,-500.0,0.00030136,2]
[312346747,1705807841728,-217.58022648,0.00030136,2]
[312346748,1705807841737,-7911.76,0.00030136,2]
[312346749,1705807841746,-415.03975167,0.00030136,2]
[312346750,1705807841755,-500.0,0.00030136,2]
[312346751,1705807841764,-168.30069407,0.00030136,2]
[312346752,1705807841773,-500.0,0.00030136,2]
[312346753,1705807841783,-903.84,0.00030136,2]
[312346754,1705807841794,-500.0,0.00030136,2]
[312346755,1705807841802,-1554.14,0.00030136,2]
[312346756,1705807841812,-1115.12,0.00030136,2]
[312346757,1705807841821,-500.38009396,0.00030136,2]
[312346758,1705807841830,-473.29545084,0.00030136,2]
[312346759,1705807841840,-500.0,0.00030136,2]
[312346760,1705807841851,-500.0,0.00030136,2]
[312346761,1705807841860,-500.0,0.00030136,2]
[312346762,1705807841869,-500.32272694,0.00030136,2]
[312346763,1705807841878,-500.0,0.00030136,2]
[312346764,1705807841888,-500.0,0.00030136,2]
[312346765,1705807841898,-598.57591787,0.00030136,2]
[312346766,1705807841907,-500.0,0.00030136,2]
[312346767,1705807841916,-500.0,0.00030136,2]
[312346768,1705807841927,-405.9717205,0.00030136,2]
[312346769,1705807841936,-1306.72,0.00030136,2]
[312346770,1705807841945,-500.0,0.00030136,2]
[312346771,1705807841954,-500.0,0.00030136,2]
[312346772,1705807841963,-766.46,0.00030136,2]
[312346773,1705807841972,-500.0,0.00030136,2]
[312346774,1705807841981,-500.0,0.00030136,2]
[312346775,1705807841990,-500.0,0.00030136,2]
[312346776,1705807841999,-500.0,0.00030136,2]
[312346777,1705807842009,-647.2,0.00030136,2]
[312346778,1705807842018,-500.0,0.00030136,2]
[312346779,1705807842027,-500.0,0.00030136,2]
[312346780,1705807842036,-500.0,0.00030136,2]
[312346781,1705807842045,-500.0,0.00030136,2]
[312346782,1705807842054,-500.0,0.00030136,2]
[312346783,1705807842063,-500.0,0.00030136,2]
[312346784,1705807842073,-500.0,0.00030136,2]
[312346785,1705807842082,-500.0,0.00030136,2]
[312346786,1705807842092,-1697.1,0.00030136,2]
[312346787,1705807842101,-500.0,0.00030136,2]
[312346788,1705807842110,-500.0,0.00030136,2]
[312346789,1705807842119,-808.31,0.00030136,2]
[312346790,1705807842129,-284.66218362,0.00030136,2]
[312346791,1705807842139,-779.24,0.00030136,2]
[312346792,1705807842147,-500.0,0.00030136,2]
[312346793,1705807842157,-500.0,0.00030136,2]
[312346794,1705807842166,-500.0,0.00030136,2]
[312346795,1705807842175,-500.0,0.00030136,2]
[312346796,1705807842184,-500.0,0.00030136,2]
[312346797,1705807842194,-500.0,0.00030136,2]
[312346798,1705807842204,-415.2839802,0.00030136,2]
[312346799,1705807842218,-500.0,0.00030136,2]
[312346800,1705807842234,-2373.99,0.00030136,2]
[312346801,1705807842243,-1000.0,0.00030136,2]
[312346802,1705807842253,-588.97,0.00030136,2]
[312346803,1705807842262,-213.03649456,0.00030136,2]
[312346804,1705807842270,-506.66714985,0.00030136,2]
[312346805,1705807842279,-1554.92,0.00030136,2]
[312346806,1705807842288,-335.79645869,0.00030136,2]
[312346807,1705807842298,-1000.0,0.00030136,2]
[312346808,1705807842307,-500.0,0.00030136,2]
[312346809,1705807842316,-500.0,0.00030136,2]
[312346810,1705807842325,-500.0,0.00030136,2]
[312346811,1705807842334,-798.78,0.00030136,2]
[312346812,1705807842343,-687.89,0.00030136,2]
[312346813,1705807842352,-500.0,0.00030136,2]
[312346815,1705807842361,-500.0,0.00030136,2]
[312346816,1705807842371,-500.0,0.00030136,2]
[312346818,1705807842379,-500.0,0.00030136,2]
[312346819,1705807842389,-670.45,0.00030136,2]
[312346820,1705807842398,-500.0,0.00030136,2]
[312346821,1705807842408,-500.0,0.00030136,2]
[312346823,1705807842418,-2235.54,0.00030136,2]
[312346824,1705807842427,-533.97445114,0.00030136,2]
[312346826,1705807842435,-500.0,0.00030136,2]
[312346828,1705807842444,-500.0,0.00030136,2]
[312346830,1705807842453,-500.0,0.00030136,2]
[312346832,1705807842464,-871.96,0.00030136,2]
[312346835,1705807842474,-690.68,0.00030136,2]
[312346838,1705807842483,-500.0,0.00030136,2]
[312346842,1705807842492,-500.0,0.00030136,2]
[312346846,1705807842501,-574.69,0.00030136,2]
[312346849,1705807842510,-515.46337371,0.00030136,2]
[312346852,1705807842519,-500.17407216,0.00030136,2]
[312346854,1705807842529,-2057.37,0.00030136,2]
[312346858,1705807842539,-515.76613026,0.00030136,2]
[312346861,1705807842548,-500.0,0.00030136,2]
[312346864,1705807842558,-500.0,0.00030136,2]
[312346867,1705807842567,-500.0,0.00030136,2]
[312346869,1705807842576,-700.43,0.00030136,2]
[312346872,1705807842585,-500.0,0.00030136,2]
[312346874,1705807842594,-500.0,0.00030136,14]
[312346876,1705807842604,-166.666666,0.00030137,2]
[312346878,1705807842613,-405.41592014,0.00030137,2]
[312346880,1705807842624,-284.72437148,0.00030173,2]
[312346882,1705807842633,-284.72437148,0.0003031,2]
[312346883,1705807842643,-1403.60456133,0.00030378,4]
[312346885,1705807842652,-500.0,0.00030407,2]
[312346886,1705807842661,-555.68986056,0.00030408,4]
[312346887,1705807842670,-1276.77818863,0.00030408,4]
[312346888,1705807842680,-2929.72220698,0.00030408,4]
[312346889,1705807842690,-979.75126017,0.00030408,4]
[312346890,1705807842699,-283.52963123,0.00030408,4]
[312346891,1705807842714,-160.47776168,0.00030409,10]
[312346892,1705807842729,-4023.68281409,0.00030409,4]
[312346893,1705807842743,-466.86321772,0.00030409,2]
[312346895,1705807842757,-500.0,0.00030409,2]
[312346896,1705807842768,-171.86503515,0.00030409,2]
[312346898,1705807842780,-202.76683107,0.00030409,2]
[312346899,1705807842794,-500.0,0.00030409,2]
[312346900,1705807842807,-500.0,0.00030409,2]
[312346902,1705807842820,-500.0,0.00030409,2]
[312346904,1705807842835,-474.49645136,0.00030409,2]
[312346905,1705807842851,-500.0,0.00030409,2]
[312346906,1705807842880,-491.80142839,0.00030409,2]
[312346908,1705807842890,-500.0,0.00030409,2]
[312346910,1705807842902,-711.91,0.00030409,2]
[312346911,1705807842915,-711.91,0.00030409,2]
[312346912,1705807842927,-711.91,0.00030409,2]
[312346913,1705807842939,-711.91,0.00030409,2]
[312346915,1705807842951,-711.91,0.00030409,2]
[312346917,1705807842965,-1000.0,0.00030409,14]
[312346919,1705807842978,-1000.0,0.00030409,14]
[312346920,1705807842990,-1000.0,0.00030409,14]
[312346921,1705807843002,-1000.0,0.00030409,14]
[312346922,1705807843016,-312.19320371,0.00030409,14]
[312346923,1705807843030,-500.0,0.00030409,2]
[312346924,1705807843042,-500.0,0.00030409,2]
[312346925,1705807843056,-401.01484293,0.00030409,2]
[312346926,1705807843067,-500.0,0.0003041,2]
[312346927,1705807843080,-500.0,0.0003041,2]
[312346928,1705807843093,-500.0,0.0003041,2]
[312346929,1705807843106,-500.0,0.0003041,2]
[312346930,1705807843120,-500.0,0.0003041,2]
[312346931,1705807843132,-471.89647136,0.0003041,2]
[312346932,1705807843148,-500.0,0.0003041,2]
[312346933,1705807843160,-500.0,0.0003041,2]
[312346934,1705807843173,-500.0,0.0003041,2]
[312346935,1705807843183,-500.0,0.0003041,2]
[312346936,1705807843194,-500.0,0.0003041,2]
[312346937,1705807843205,-200.0,0.0003041,2]
[312346938,1705807843217,-500.0,0.0003041,2]
[312346939,1705807843230,-649.7,0.0003041,2]
[312346940,1705807843241,-500.0,0.0003041,2]
[312346941,1705807843253,-1014.44387761,0.0003041,2]
[312346942,1705807843266,-500.0,0.0003041,2]
[312346943,1705807843276,-500.0,0.0003041,2]
[312346944,1705807843287,-725.93,0.0003041,2]
[312346945,1705807843297,-500.0,0.0003041,2]
[312346946,1705807843309,-500.0,0.0003041,2]
[312346947,1705807843320,-500.0,0.0003041,2]
[312346948,1705807843331,-500.0,0.0003041,2]
[312346949,1705807843342,-500.0,0.0003041,2]
[312346950,1705807843353,-519.77,0.0003041,2]
[312346951,1705807843364,-500.0,0.0003041,2]
[312346952,1705807843375,-355.36602426,0.0003041,2]
[312346953,1705807843386,-500.0,0.0003041,2]
[312346954,1705807843397,-500.0,0.0003041,2]
[312346955,1705807843408,-500.0,0.0003041,2]
[312346956,1705807843418,-501.21615261,0.0003041,2]
[312346957,1705807843430,-500.0,0.0003041,2]
[312346958,1705807843442,-500.0,0.0003041,2]
[312346959,1705807843452,-692.41,0.0003041,2]
[312346960,1705807843465,-500.0,0.0003041,2]
[312346961,1705807843476,-500.0,0.0003041,2]
[312346962,1705807843487,-500.0,0.0003041,2]
[312346963,1705807843498,-500.0,0.0003041,2]
[312346964,1705807843510,-769.37,0.0003041,2]
[312346965,1705807843521,-500.0,0.0003041,2]
[312346966,1705807843533,-500.0,0.0003041,2]
[312346967,1705807843544,-1346.86,0.0003041,2]
[312346968,1705807843555,-500.0,0.0003041,2]
[312346969,1705807843566,-500.0,0.0003041,2]
[312346970,1705807843576,-581.40000945,0.0003041,2]
[312346971,1705807843587,-500.0,0.0003041,2]
[312346972,1705807843598,-500.0,0.0003041,2]
[312346973,1705807843611,-538.03317882,0.0003041,2]
[312346974,1705807843622,-500.0,0.0003041,2]
[312346975,1705807843633,-500.0,0.0003041,2]
[312346976,1705807843644,-500.0,0.0003041,2]
[312346977,1705807843655,-462.70107331,0.0003041,2]
[312346978,1705807843668,-500.0,0.0003041,2]
[312346979,1705807843680,-500.0,0.0003041,2]
[312346980,1705807843691,-500.0,0.0003041,2]
[312346981,1705807843703,-500.0,0.0003041,2]
[312346982,1705807843718,-500.0,0.0003041,2]
[312346983,1705807843730,-500.0,0.0003041,2]
[312346984,1705807843741,-150.0,0.0003041,2]
[312346985,1705807843752,-521.20690982,0.0003041,2]
[312346986,1705807843763,-500.0,0.0003041,2]
[312346987,1705807843774,-647.66,0.0003041,2]
[312346988,1705807843786,-500.0,0.0003041,2]
[312346989,1705807843797,-500.0,0.0003041,2]
[312346990,1705807843808,-500.0,0.0003041,2]
[312346991,1705807843818,-1091.96,0.0003041,2]
[312346992,1705807843830,-500.0,0.0003041,2]
[312346993,1705807843841,-500.0,0.0003041,2]
[312346994,1705807843855,-500.0,0.0003041,2]
[312346995,1705807843866,-500.0,0.0003041,2]
[312346996,1705807843877,-681.63,0.0003041,2]
[312346997,1705807843888,-546.97,0.0003041,2]
[312346998,1705807843899,-502.08848688,0.0003041,2]
[312346999,1705807843909,-390.67432736,0.0003041,2]
[312347000,1705807843920,-2175.02,0.0003041,2]
[312347001,1705807843932,-666.01,0.0003041,2]
[312347002,1705807843943,-298.05207015,0.0003041,2]
[312347003,1705807843955,-500.0,0.0003041,2]
[312347004,1705807843968,-1000.0,0.0003041,2]
[312347005,1705807843980,-500.0,0.0003041,2]
[312347006,1705807843992,-2967.23,0.0003041,2]
[312347007,1705807844005,-500.0,0.0003041,2]
[312347008,1705807844017,-500.0,0.0003041,2]
[312347009,1705807844028,-500.0,0.0003041,2]
[312347010,1705807844040,-500.0,0.0003041,2]
[312347011,1705807844052,-500.0,0.0003041,2]